bitfinex/quotes_SOLUSD_20250802
["timestamp","ask_amount","ask_price","bid_price","bid_amount"]
[1754145873231,0.68,162.98,162.97,10.60914655]
[1754145875215,0.68,162.98,162.97,0.06]
[1754145875652,0.68,162.98,162.97,10.60914655]
[1754145876347,1001.48309832,163.0,162.97,10.60914655]
[1754145876348,1002.16309832,163.0,162.97,10.60914655]
[1754145876547,1002.16309832,163.0,162.99,10.54914655]
[1754145876935,1002.16309832,163.0,162.97,10.60914655]
[1754145877132,0.68,162.99,162.98,10.54914655]
[1754145877336,1002.16309832,163.0,162.98,10.54914655]
[1754145877721,1001.48309832,163.0,162.98,10.54914655]
[1754145878137,0.68,162.99,162.97,0.06]
[1754145878452,0.68,162.99,162.98,10.54914655]
[1754145879524,1001.48309832,163.0,162.98,10.54914655]
[1754145879852,1001.48309832,163.0,162.99,10.54914655]
[1754145880322,1001.48309832,163.0,162.97,0.06]
[1754145880649,1001.48309832,163.0,162.99,10.54914655]
[1754145880860,1002.16309832,163.0,162.98,10.54914655]
[1754145881061,0.68,162.99,162.97,10.60914655]
[1754145881566,0.68,162.98,162.97,10.60914655]
[1754145882233,0.68,162.98,162.97,0.06]
[1754145882642,1047.26309832,163.0,162.97,10.60914655]
[1754145882941,0.68,162.98,162.97,10.60914655]
[1754145883960,1046.58309832,163.0,162.97,10.60914655]
[1754145884157,1047.26309832,163.0,162.98,10.54914655]
[1754145884341,0.68,162.99,162.98,10.54914655]
[1754145884542,0.68,162.99,162.97,0.06]
[1754145884543,0.68,162.99,162.97,10.60914655]
[1754145884847,0.68,162.98,162.97,10.60914655]
[1754145886257,0.68,162.98,162.97,0.06]
[1754145887269,0.68,162.98,162.97,10.60914655]
[1754145887650,0.68,162.98,162.97,0.06]
[1754145887857,0.68,162.98,162.97,10.60914655]
[1754145888567,1047.26309832,163.0,162.97,10.60914655]
[1754145888758,1046.58309832,163.0,162.98,6.33839783]
[1754145888937,1001.48309832,163.0,162.99,6.33839783]
[1754145889137,1001.48309832,163.0,162.99,7.01839783]
[1754145889338,918.54005412,163.0,162.99,7.01839783]
[1754145889567,918.54005412,163.0,162.99,23.8030818]
[1754145890368,835.59700992,163.0,162.99,23.8030818]
[1754145891867,835.59700992,163.0,162.97,0.06]
[1754145892064,835.59700992,163.0,162.99,6.33839783]
[1754145892065,836.27700992,163.0,162.99,6.33839783]
[1754145892845,835.59700992,163.0,162.99,10.56109248]
[1754145895479,835.59700992,163.0,162.99,0.68]
[1754145895644,835.59700992,163.0,162.99,11.24109248]
[1754145896052,835.59700992,163.0,162.99,10.56109248]
[1754145896651,836.27700992,163.0,162.99,10.56109248]
[1754145896946,835.59700992,163.0,162.99,10.56109248]
[1754145899661,835.59700992,163.0,162.99,11.24109248]
[1754145900057,835.59700992,163.0,162.99,21.80218496]
[1754145900275,835.59700992,163.0,162.99,10.56109248]
[1754145900993,835.59700992,163.0,162.99,28.00577645]
[1754145901175,835.59700992,163.0,162.99,38.56686893]
[1754145901363,835.59700992,163.0,162.99,28.00577645]
[1754145901863,835.59700992,163.0,162.99,72.40577645]
[1754145902488,835.59700992,163.0,162.99,73.06577645]
[1754145902864,835.59700992,163.0,162.99,55.62109248]
[1754145903768,835.59700992,163.0,162.99,66.84218496]
[1754145903964,835.59700992,163.0,162.99,56.28109248]
[1754145904165,835.59700992,163.0,162.99,55.62109248]
[1754145904364,835.59700992,163.0,162.99,10.56109248]
[1754145906189,835.59700992,163.0,162.99,11.22109248]
[1754145906488,835.59700992,163.0,162.99,10.56109248]
[1754145906869,835.59700992,163.0,162.99,11.22109248]
[1754145907076,835.59700992,163.0,162.99,10.56109248]
[1754145908191,835.59700992,163.0,162.99,28.00577645]
[1754145908356,835.59700992,163.0,162.99,27.34577645]
[1754145909189,835.59700992,163.0,162.99,10.56109248]
[1754145909999,836.31700992,163.0,162.99,10.56109248]
[1754145910666,835.59700992,163.0,162.99,10.56109248]
[1754145911395,835.59700992,163.0,162.99,38.56686893]
[1754145912068,835.59700992,163.0,162.99,28.00577645]
[1754145912783,835.59700992,163.0,162.99,23.11773919]
[1754145914998,836.31700992,163.0,162.99,6.33305522]
[1754145915370,835.59700992,163.0,162.99,6.33305522]
[1754145915699,752.65396572,163.0,162.99,113.37773919]
[1754145915871,741.7743779,163.0,162.99,130.01790036]
[1754145916198,741.7743779,163.0,162.99,129.71079441]
[1754145916490,741.7743779,163.0,162.99,122.71773919]
[1754145916694,741.7743779,163.0,162.99,167.83773919]
[1754145917018,741.7743779,163.0,162.99,168.49773919]
[1754145917176,658.8313337,163.0,162.99,168.49773919]
[1754145917888,658.8313337,163.0,162.99,157.83773919]
[1754145918090,659.5513337,163.0,162.99,51.45305522]
[1754145918296,659.5513337,163.0,162.99,51.43305522]
[1754145918503,659.5513337,163.0,162.99,6.33305522]
[1754145919207,659.5513337,163.0,162.98,6.33305522]
[1754145919406,658.8313337,163.0,162.98,6.33305522]
[1754145919618,0.72,162.99,162.97,45.16]
[1754145919800,658.8313337,163.0,162.98,6.33305522]
[1754145919989,658.8313337,163.0,162.99,6.33305522]
[1754145920401,659.5513337,163.0,162.97,45.46714364]
[1754145920599,658.8313337,163.0,162.97,0.36714364]
[1754145920905,658.8313337,163.0,162.98,6.33305522]
[1754145921106,0.72,162.99,162.97,0.06]
[1754145921501,0.72,162.99,162.98,6.33305522]
[1754145921682,658.8313337,163.0,162.98,6.33305522]
[1754145921884,658.8313337,163.0,162.97,0.06]
[1754145922135,52.13305522,162.99,162.97,0.06]
[1754145922312,6.33305522,162.96,162.93,0.06]
[1754145922480,26.0,162.96,162.93,0.06]
[1754145922689,0.72,162.95,162.93,6.39305522]
[1754145923184,45.08,162.97,162.93,6.39305522]
[1754145923185,45.08,162.97,162.94,6.33305522]
[1754145923799,0.72,162.96,162.94,6.33305522]
[1754145924081,26.0,162.98,162.95,6.33305522]
[1754145924082,71.06,162.98,162.95,6.33305522]
[1754145924289,71.06,162.98,162.93,0.06]
[1754145924290,45.06,162.99,162.96,6.33305522]
[1754145924600,0.72,162.99,162.98,6.33305522]
[1754145924801,658.8313337,163.0,162.98,6.33305522]
[1754145925009,658.8313337,163.0,162.99,6.33305522]
[1754145925889,658.8313337,163.0,162.99,23.77773919]
[1754145926186,575.8882895,163.0,162.99,23.77773919]
[1754145926391,575.8882895,163.0,162.99,33.77773919]
[1754145926785,555.61332314,163.0,162.99,48.54792217]
[1754145927020,472.67027894,163.0,162.99,48.54792217]
[1754145927926,369.45226838,163.0,162.99,48.54792217]
[1754145928920,369.45226838,163.0,162.99,55.5716191]
[1754145929919,369.45226838,163.0,162.99,72.35630307]
[1754145930218,369.45226838,163.0,162.99,83.56792217]
[1754145930610,369.45226838,163.0,162.99,83.87502812]
[1754145930797,369.45226838,163.0,162.99,72.35630307]
[1754145931896,369.45226838,163.0,162.99,73.02630307]
[1754145932098,369.45226838,163.0,162.99,83.57792217]
[1754145932300,369.45226838,163.0,162.99,72.35630307]
[1754145932500,369.45226838,163.0,162.99,161.97630307]
[1754145933433,369.45226838,163.0,162.99,151.42468397]
[1754145933606,370.14226838,163.0,162.94,89.6]
[1754145933809,0.69,162.99,162.98,10.5516191]
[1754145934001,0.69,162.99,162.97,45.04]
[1754145934196,369.45226838,163.0,162.98,10.5516191]
[1754145934432,369.45226838,163.0,162.99,0.06]
[1754145934926,370.17226838,163.0,162.99,0.06]
[1754145939942,380.72388748,163.0,162.99,0.06]
[1754145941002,370.17226838,163.0,162.99,0.06]
[1754145941225,380.72388748,163.0,162.99,0.06]
[1754145942115,370.17226838,163.0,162.99,0.06]
[1754145943623,369.48226838,163.0,162.99,0.06]
[1754145946131,370.17226838,163.0,162.99,0.06]
[1754145946330,425.72388748,163.0,162.99,0.06]
[1754145948331,370.17226838,163.0,162.99,0.06]
[1754145949838,369.48226838,163.0,162.99,0.06]
[1754145951918,370.17226838,163.0,162.99,0.06]
[1754145953020,380.72388748,163.0,162.99,0.06]
[1754145954223,370.17226838,163.0,162.99,0.06]
[1754145954526,380.72388748,163.0,162.99,0.06]
[1754145954725,425.64388748,163.0,162.99,0.06]
[1754145955537,436.19550658,163.0,162.99,0.06]
[1754145955739,452.98019055,163.0,162.99,0.06]
[1754145957949,442.42857145,163.0,162.99,0.06]
[1754145960643,452.98019055,163.0,162.99,0.06]
[1754145960972,442.42857145,163.0,162.99,0.06]
[1754145961927,386.26695235,163.0,162.99,0.06]
[1754145962142,380.03388748,163.0,162.99,0.06]
[1754145962344,425.54388748,163.0,162.99,0.06]
[1754145963626,414.28226838,163.0,162.99,0.06]
[1754145964028,369.48226838,163.0,162.99,0.06]
[1754145965067,425.52388748,163.0,162.99,0.06]
[1754145966133,452.86019055,163.0,162.99,0.06]
[1754145968335,482.0637528,163.0,162.99,0.06]
[1754145969157,460.9605146,163.0,162.99,0.06]
[1754145969457,482.0637528,163.0,162.99,0.06]
[1754145970756,42.78468397,162.98,162.97,0.06]
[1754145970963,98.86326834,162.98,162.97,0.06]
[1754145971157,99.57326834,162.98,162.97,0.06]
[1754145971760,113.27342234,162.98,162.97,0.06]
[1754145975261,99.57326834,162.98,162.97,0.06]
[1754145975781,102.03458034,162.98,162.97,0.06]
[1754145976291,99.57326834,162.98,162.97,0.06]
[1754145976468,102.03442734,162.98,162.97,0.06]
[1754145976861,97.8270785,162.98,162.97,0.06]
[1754145977786,97.7670785,162.98,162.97,0.06]
[1754145978080,53.0670785,162.98,162.97,0.06]
[1754145978279,95.2859195,162.98,162.97,0.06]
[1754145980488,26.0,162.94,162.89,6.19427026]
[1754145980678,44.64,162.93,162.89,6.19427026]
[1754145980875,50.98427026,162.93,162.88,8.82280446]
[1754145981079,6.34427026,162.91,162.88,2.4785342]
[1754145981274,50.98427026,162.91,162.88,2.4785342]
[1754145981485,44.64,162.91,162.88,8.82280446]
[1754145982093,44.64,162.91,162.89,6.34427026]
[1754145982385,44.62,162.93,162.9,6.34427026]
[1754145982575,44.62,162.93,162.91,6.34427026]
[1754145982777,44.62,162.94,162.92,6.52427026]
[1754145982987,44.62,162.95,162.93,0.18]
[1754145983302,44.62,162.95,162.92,6.34427026]
[1754145983513,32.34427026,162.97,162.94,0.18]
[1754145983802,44.62,162.96,162.95,0.18]
[1754145983981,369.48226838,163.0,162.95,6.52427026]
[1754145984288,44.64,162.99,162.98,6.34427026]
[1754145984507,369.48226838,163.0,162.99,0.18]
[1754145984677,369.48226838,163.0,162.99,6.52427026]
[1754145985069,369.48226838,163.0,162.99,0.18]
[1754145985299,369.48226838,163.0,162.99,6.52427026]
[1754145986082,375.82653864,163.0,162.94,6.524271]
[1754145986284,44.62,162.99,162.96,6.34427026]
[1754145986675,51.73118847,162.99,162.94,0.18]
[1754145986874,6.34427026,162.98,162.93,6.34427026]
[1754145987096,6.34427026,162.98,162.93,0.18]
[1754145987300,7.05427026,162.98,162.93,6.52427026]
[1754145987504,44.62,162.97,162.93,6.52427026]
[1754145987877,44.62,162.97,162.94,0.18]
[1754145988297,44.62,162.97,162.94,6.52427026]
[1754145988903,44.62,162.97,162.95,0.18]
[1754145989282,44.64,162.98,162.94,10.56800254]
[1754145989483,55.20800254,162.98,162.94,10.74800254]
[1754145989983,44.64,162.98,162.94,10.56800254]
[1754145990181,44.64,162.98,162.96,10.56800254]
[1754145990508,44.64,162.98,162.94,10.56800254]
[1754145990509,0.71,162.98,162.94,10.56800254]
[1754145990706,45.31,162.98,162.94,10.56800254]
[1754145991287,0.76701233,162.97,162.92,0.18]
[1754145991587,11.27800254,162.97,162.93,10.56800254]
[1754145992193,0.71,162.97,162.93,10.56800254]
[1754145993083,44.6,162.98,162.94,10.56800254]
[1754145993387,55.87800254,162.98,162.94,10.56800254]
[1754145993906,10.56800254,162.96,162.92,10.56800254]
[1754145994109,10.56800254,162.93,162.89,10.56800254]
[1754145994327,0.71,162.92,162.89,10.56800254]
[1754145994518,55.18800254,162.94,162.89,10.74800254]
[1754145995022,0.71,162.93,162.89,10.56800254]
[1754145995211,11.33520317,162.93,162.88,2.4785342]
[1754145995415,0.71,162.92,162.88,13.04653674]
[1754145995730,0.71,162.91,162.88,13.04653674]
[1754145995931,44.62,162.92,162.89,10.56800254]
[1754145996223,55.16800254,162.94,162.88,2.4785342]
[1754145996402,55.93515609,162.94,162.89,10.56800254]
[1754145996602,11.27800254,162.93,162.89,10.56800254]
[1754145997713,0.71,162.92,162.89,10.56800254]
[1754145999495,10.56800254,162.93,162.89,10.56800254]
[1754145999697,11.27800254,162.93,162.89,10.56800254]
[1754145999928,55.93515609,162.94,162.9,10.56800254]
[1754146000225,44.6,162.94,162.91,10.56800254]
[1754146000587,45.31,162.94,162.9,10.56800254]
[1754146001634,10.56800254,162.94,162.88,2.6585342]
[1754146001789,0.71,162.93,162.89,10.56800254]
[1754146001989,11.33510901,162.95,162.9,10.56800254]
[1754146002307,70.54,162.96,162.88,2.4785342]
[1754146002308,81.10800254,162.96,162.91,0.18]
[1754146002514,10.56800254,162.94,162.88,92.0785342]
[1754146002698,11.27800254,162.95,162.91,10.56800254]
[1754146002883,0.71,162.94,162.91,10.56800254]
[1754146003092,81.81800254,162.96,162.92,10.56800254]
[1754146003512,0.71,162.95,162.92,10.56800254]
[1754146004130,44.54,162.96,162.93,10.56800254]
[1754146004680,0.71,162.99,162.95,10.56800254]
[1754146004792,11.27800254,162.98,162.94,10.56800254]
[1754146004988,0.71,162.97,162.94,10.56800254]
[1754146006330,0.76691821,162.99,162.95,10.56800254]
[1754146006690,0.71,162.98,162.94,10.56800254]
[1754146007023,0.71,162.98,162.95,10.56800254]
[1754146007320,414.73226838,163.0,162.96,10.56800254]
[1754146007506,1.47691821,162.99,162.95,10.56800254]
[1754146007700,0.71,162.98,162.95,10.56800254]
[1754146007890,424.59027092,163.0,162.95,10.56800254]
[1754146008086,424.59027092,163.0,162.96,10.56800254]
[1754146008292,0.71,162.99,162.96,10.56800254]
[1754146008504,0.71,162.99,162.93,0.18]
[1754146008814,414.02226838,163.0,162.97,6.33880963]
[1754146009118,414.02226838,163.0,162.98,6.33880963]
[1754146009285,369.48226838,163.0,162.98,6.33880963]
[1754146010090,369.48226838,163.0,162.99,6.33880963]
[1754146010986,369.48226838,163.0,162.99,6.51880963]
[1754146013126,369.48226838,163.0,162.99,6.33880963]
[1754146014494,370.19226838,163.0,162.95,26.30714364]
[1754146014727,369.48226838,163.0,162.98,6.33880963]
[1754146014928,369.48226838,163.0,162.99,6.33880963]
[1754146018751,369.48226838,163.0,162.97,26.0]
[1754146018954,0.71,162.99,162.97,26.0]
[1754146019113,369.48226838,163.0,162.97,26.0]
[1754146019322,369.48226838,163.0,162.97,6.33880963]
[1754146019619,0.71,162.99,162.97,6.33880963]
[1754146019830,369.48226838,163.0,162.98,6.33880963]
[1754146020028,369.48226838,163.0,162.99,6.33880963]
[1754146020844,369.48226838,163.0,162.99,6.51880963]
[1754146021051,275.47963636,163.0,162.99,119.24230323]
[1754146021356,275.47963636,163.0,162.99,112.9034936]
[1754146021557,283.16713636,163.0,162.99,113.21059955]
[1754146021724,283.16713636,163.0,162.99,129.54940918]
[1754146022050,283.16713636,163.0,162.99,147.71230323]
[1754146022051,189.34450434,163.0,162.99,147.71230323]
[1754146022351,178.12551269,163.0,162.99,147.71230323]
[1754146022551,178.12551269,163.0,162.99,58.11230323]
[1754146022754,178.12551269,163.0,162.99,58.41940918]
[1754146022923,75.41044122,163.0,162.99,71.83949432]
[1754146023126,50.45061236,163.0,162.99,74.84077062]
[1754146023616,50.45061236,163.0,162.99,119.30077062]
[1754146023816,50.45061236,163.0,162.99,118.99366467]
[1754146024015,0.03,163.02,163.01,16.78468397]
[1754146024217,0.74,163.09,163.04,16.78468397]
[1754146024523,0.74,163.09,163.04,44.46]
[1754146024829,0.03,163.09,163.08,10.54789477]
[1754146025454,0.03,163.09,163.05,0.30650389]
[1754146025455,0.74,163.09,163.05,0.30650389]
[1754146025628,0.03,163.09,163.08,10.54789477]
[1754146025834,0.03,163.09,163.05,0.30650389]
[1754146026032,0.03,163.09,163.08,10.54789477]
[1754146026544,0.74,163.09,163.07,10.54789477]
[1754146026751,0.03,163.09,163.08,10.54789477]
[1754146027138,0.03,163.09,163.06,10.54789477]
[1754146027322,0.71,163.08,163.06,10.54789477]
[1754146027526,0.71,163.07,163.06,10.54789477]
[1754146029438,0.03,163.09,163.06,10.54789477]
[1754146029640,0.03,163.09,163.08,10.54789477]
[1754146030043,0.03,163.09,163.06,89.9064475]
[1754146030436,0.03,163.09,163.07,10.54789477]
[1754146031158,0.71,163.08,163.06,10.54789477]
[1754146031655,0.71,163.07,163.06,10.54789477]
[1754146032050,0.71,163.07,163.05,144.52789477]
[1754146032359,0.74,163.09,163.06,10.85437989]
[1754146032565,10.54789477,163.08,163.05,89.6]
[1754146032745,11.25789477,163.07,163.03,44.36]
[1754146033064,0.03,163.09,163.03,44.36]
[1754146033065,0.71,163.06,163.04,10.54789477]
[1754146033770,0.71,163.08,163.04,10.54789477]
[1754146034070,10.57789477,163.09,163.04,10.54789477]
[1754146034248,0.71,163.07,163.04,10.54789477]
[1754146034854,0.74,163.09,163.05,10.54789477]
[1754146035035,0.03,163.09,163.07,10.54789477]
[1754146036072,0.74,163.09,163.06,10.54789477]
[1754146036243,0.74,163.09,163.07,10.54789477]
[1754146036764,0.71,163.08,163.06,10.54789477]
[1754146037146,0.03,163.09,163.06,10.54789477]
[1754146037345,0.03,163.09,163.04,0.30654154]
[1754146037346,0.03,163.09,163.07,10.54789477]
[1754146037548,0.74,163.09,163.07,10.54789477]
[1754146037852,0.03,163.09,163.08,10.54789477]
[1754146038630,0.03,163.09,163.08,27.33257874]
[1754146039043,0.03,163.09,163.08,37.88047351]
[1754146039244,0.03,163.09,163.08,27.33257874]
[1754146039758,0.2,163.11,163.1,16.78468397]
[1754146039934,0.2,163.11,163.1,82.56654502]
[1754146041138,0.2,163.14,163.13,26.0]
[1754146041470,0.2,163.14,163.13,81.21368439]
[1754146041638,0.2,163.14,163.13,97.99836836]
[1754146043462,0.2,163.16,163.14,16.78468397]
[1754146043676,0.2,163.17,163.15,27.6382181]
[1754146043962,0.2,163.17,163.16,71.67257874]
[1754146044473,0.2,163.17,163.16,86.48012446]
[1754146044639,0.71,163.24,163.16,86.48012446]
[1754146044846,0.03,163.26,163.23,10.54789477]
[1754146045047,0.03,163.26,163.24,55.1926893]
[1754146045561,0.74,163.25,163.24,44.32]
[1754146045765,0.74,163.25,163.24,54.86789477]
[1754146046272,0.03,163.25,163.24,54.86789477]
[1754146046473,0.03,163.25,163.24,44.32]
[1754146046775,0.03,163.25,163.24,54.86789477]
[1754146047270,0.03,163.25,163.24,71.65257874]
[1754146048378,0.74,163.25,163.22,44.28]
[1754146048583,11.28789477,163.25,163.21,36.54789477]
[1754146048754,11.28789477,163.25,163.21,44.3]
[1754146048755,0.71,163.24,163.21,44.3]
[1754146049076,0.71,163.24,163.21,54.84789477]
[1754146049276,0.71,163.23,163.21,54.84789477]
[1754146049567,0.03,163.25,163.21,54.84789477]
[1754146049568,0.71,163.22,163.21,54.84789477]
[1754146049949,0.71,163.24,163.21,54.84789477]
[1754146050149,0.71,163.23,163.21,54.84789477]
[1754146050451,0.74,163.25,163.22,10.54789477]
[1754146050661,0.71,163.24,163.22,10.54789477]
[1754146050863,0.72,163.23,163.21,54.84789477]
[1754146051052,0.72,163.22,163.21,54.84789477]
[1754146052553,0.72,163.22,163.21,44.3]
[1754146053156,0.72,163.22,163.19,10.54789477]
[1754146053449,11.26789477,163.22,163.2,44.28]
[1754146053654,12.03377921,163.21,163.16,101.69631114]
[1754146053951,10.54789477,163.18,163.16,101.69631114]
[1754146054278,0.72,163.17,163.16,101.69631114]
[1754146054774,0.72,163.17,163.16,112.24420591]
[1754146055248,0.72,163.19,163.16,112.24420591]
[1754146055454,0.72,163.18,163.16,112.24420591]
[1754146056245,0.72,163.2,163.16,112.24420591]
[1754146056459,0.72,163.19,163.17,44.26]
[1754146056877,0.72,163.18,163.17,44.26]
[1754146057264,0.72,163.18,163.16,145.93631114]
[1754146057476,0.72,163.18,163.16,156.48420591]
[1754146058477,0.76574369,163.24,163.16,156.48420591]
[1754146058478,0.72,163.17,163.16,145.93631114]
[1754146058655,11.26789477,163.17,163.16,101.69631114]
[1754146058855,10.54789477,163.17,163.07,0.68]
[1754146059052,10.54789477,163.14,163.09,36.54789477]
[1754146059258,26.0,163.21,163.09,36.54789477]
[1754146059259,0.72,163.13,163.1,54.78789477]
[1754146059494,0.7659783,163.19,163.12,10.54789477]
[1754146059665,0.72,163.17,163.13,54.78789477]
[1754146059861,0.72,163.16,163.13,54.78789477]
[1754146060084,0.72,163.15,163.13,44.24]
[1754146060280,0.7659783,163.19,163.13,44.24]
[1754146060281,0.72,163.14,163.13,44.24]
[1754146060485,0.72,163.16,163.13,54.78789477]
[1754146060969,10.54789477,163.18,163.13,54.78789477]
[1754146061171,0.72,163.17,163.14,10.54789477]
[1754146061572,0.72,163.2,163.16,10.54789477]
[1754146061783,0.72,163.2,163.17,10.54789477]
[1754146061992,0.72,163.21,163.18,10.54789477]
[1754146062861,11.31368537,163.23,163.18,10.54789477]
[1754146063058,0.72,163.21,163.18,10.54789477]
[1754146063396,0.72,163.2,163.17,44.24]
[1754146063593,0.72,163.2,163.17,54.78789477]
[1754146063765,0.72,163.22,163.18,10.54789477]
[1754146063960,0.72,163.22,163.19,10.54789477]
[1754146064188,0.79569678,163.25,163.2,10.54789477]
[1754146064395,0.75,163.25,163.21,10.54789477]
[1754146064591,10.57789477,163.25,163.19,44.28]
[1754146064797,11.26789477,163.24,163.19,54.82789477]
[1754146065090,0.72,163.23,163.19,54.82789477]
[1754146065292,0.72,163.22,163.19,54.82789477]
[1754146065500,0.72,163.22,163.2,10.54789477]
[1754146065987,11.29789477,163.25,163.2,10.54789477]
[1754146066193,0.03,163.22,163.2,10.54789477]
[1754146066565,0.03,163.22,163.19,44.28]
[1754146066566,0.03,163.22,163.21,10.54789477]
[1754146066768,0.03,163.22,163.21,54.82789477]
[1754146066976,0.03,163.22,163.21,98.5976172]
[1754146067697,0.03,163.22,163.21,72.5976172]
[1754146067880,0.03,163.22,163.21,72.5776172]
[1754146068567,0.03,163.22,163.21,72.5576172]
[1754146072304,0.03,163.25,163.24,26.0]
[1754146072491,0.03,163.25,163.24,81.09265173]
[1754146072691,0.03,163.25,163.24,81.77265173]
[1754146073403,0.03,163.25,163.24,98.5573357]
[1754146073594,0.03,163.26,163.25,16.78468397]
[1754146073901,0.2,163.27,163.25,28.01257874]
[1754146074103,0.2,163.27,163.26,72.65718566]
[1754146074318,0.2,163.27,163.26,72.63718566]
[1754146074479,0.03,163.28,163.27,16.78468397]
[1754146074678,0.03,163.28,163.27,28.01257874]
[1754146075398,0.03,163.34,163.31,16.78468397]
[1754146075706,0.03,163.34,163.32,44.6240068]
[1754146075880,0.75,163.34,163.33,10.54789477]
[1754146076777,0.03,163.34,163.33,10.54789477]
[1754146077074,0.03,163.34,163.32,44.6240068]
[1754146077380,0.75,163.34,163.33,10.54789477]
[1754146077706,0.03,163.34,163.33,10.54789477]
[1754146077887,0.03,163.34,163.33,54.01257874]
[1754146078090,0.03,163.34,163.33,53.33257874]
[1754146078600,0.03,163.34,163.33,54.01257874]
[1754146078905,0.03,163.34,163.33,31.10842127]
[1754146079210,0.03,163.37,163.36,16.78468397]
[1754146079380,0.03,163.37,163.36,97.99621074]
[1754146081620,0.03,163.37,163.36,53.63621074]
[1754146081933,0.69,163.37,163.36,81.21152677]
[1754146082136,0.69,163.37,163.36,70.663632]
[1754146082294,0.69,163.37,163.36,81.21152677]
[1754146082295,0.03,163.37,163.36,81.21152677]
[1754146082499,0.03,163.37,163.36,97.99621074]
[1754146082699,0.86,163.4,163.36,97.99621074]
[1754146082700,0.2,163.4,163.39,42.78468397]
[1754146082916,0.2,163.4,163.39,98.09592974]
[1754146085206,0.86,163.4,163.39,98.09592974]
[1754146085528,0.86,163.4,163.39,81.31124577]
[1754146085738,0.86,163.4,163.39,70.763351]
[1754146085917,0.86,163.4,163.39,81.31124577]
[1754146086223,0.86,163.4,163.39,36.85124577]
[1754146086432,0.86,163.4,163.39,81.39124577]
[1754146086651,0.2,163.4,163.39,81.39124577]
[1754146086936,0.2,163.4,163.39,98.17592974]
[1754146087300,0.2,163.4,163.39,98.83592974]
[1754146087502,0.2,163.4,163.39,109.38382451]
[1754146087806,0.2,163.4,163.39,98.83592974]
[1754146088441,0.2,163.4,163.39,109.38382451]
[1754146089202,0.2,163.4,163.39,87.62803497]
[1754146089433,0.2,163.4,163.39,98.83592974]
[1754146089729,0.2,163.4,163.39,109.38382451]
[1754146090605,0.2,163.4,163.39,98.17592974]
[1754146091326,0.2,163.4,163.39,53.63592974]
[1754146091534,0.2,163.4,163.39,98.09592974]
[1754146094142,0.86,163.4,163.39,98.09592974]
[1754146094651,0.86,163.4,163.39,98.01592974]
[1754146094822,0.2,163.4,163.39,98.01592974]
[1754146095512,0.2,163.4,163.39,98.67592974]
[1754146095930,0.2,163.4,163.39,109.22382451]
[1754146096127,0.2,163.4,163.39,98.67592974]
[1754146096330,0.2,163.4,163.39,109.22382451]
[1754146096712,0.2,163.4,163.39,98.67592974]
[1754146097026,0.2,163.4,163.39,109.22382451]
[1754146097430,0.2,163.4,163.39,98.01592974]
[1754146098345,0.2,163.4,163.39,98.71592974]
[1754146100127,0.2,163.4,163.39,98.05592974]
[1754146100328,0.86,163.4,163.39,27.63592974]
[1754146100527,0.86,163.4,163.39,72.03592974]
[1754146100965,11.40789477,163.4,163.36,0.06]
[1754146101264,11.40789477,163.4,163.37,44.44]
[1754146101265,0.66,163.39,163.37,44.44]
[1754146101419,0.66,163.39,163.36,44.5]
[1754146101619,0.66,163.39,163.34,0.06]
[1754146101620,1.4250407,163.39,163.34,0.06]
[1754146101851,0.66,163.38,163.34,0.06]
[1754146102138,10.54789477,163.35,163.34,0.06]
[1754146102641,11.20789477,163.35,163.34,0.06]
[1754146102842,0.66,163.35,163.34,0.06]
[1754146103023,11.20789477,163.35,163.34,0.06]
[1754146107041,27.99257874,163.35,163.34,0.06]
[1754146107283,53.99257874,163.35,163.34,0.06]
[1754146107773,26.0,163.32,163.27,100.81917432]
[1754146107941,10.54789477,163.28,163.27,100.81917432]
[1754146108150,11.20789477,163.28,163.27,100.81917432]
[1754146109466,11.20789477,163.28,163.22,10.54789477]
[1754146109666,10.54789477,163.27,163.22,10.54789477]